[Event "ESTCC U65 2018"]
[Site "Walbrzych"]
[Date "2018.04.19"]
[Round "6"]
[White "Vucenovic, Dragomir"]
[Black "Grahn, Lars"]
[Result "0-1"]
[ECO "A88"]
[WhiteElo "2248"]
[BlackElo "1949"]
[Annotator "NA"]
[PlyCount "76"]
[EventDate "2018.??.??"]
[EventCountry "POL"]
[SourceTitle "playchess.com"]
[Source "ChessBase"]
[SourceQuality "1"]
[WhiteTeam "Switzerland"]
[BlackTeam "Sweden"]
[WhiteTeamCountry "SUI"]
[BlackTeamCountry "SWE"]
[TimeControl "40/5400+30:1800+30"]

1. d4 {[%emt 0:00:00]} f5 {[%emt 0:00:08]} 2. Nf3 {[%emt 0:00:00]} Nf6 {[%emt 0:00:10]} 3. g3 {[%emt 0:00:00]} g6 {[%emt 0:00:09]} 4. Bg2 {[%emt 0:00:00]} Bg7 {[%emt 0:00:09] LiveBook: 4855 Games} 5. O-O {[%emt 0:00:02]} O-O {[%emt 0:00:07]} 6. c4 {[%emt 0:00:05]} d6 {[%emt 0:00:08]} 7. Nc3 {[%emt 0:00:07]} c6 {[%emt 0:00:10]} 8. Qc2 {[%emt 0:00:04]} Qc7 {[%emt 0:00:38]} 9. Bg5 {[%emt 0:00:11] A88: Dutch Defence: Leningrad System: 5 Nf3 0-0 6 0-0 d6 7 Nc3 c6} (9. b3 a5 10. Bb2 Na6 11. Rad1 e5 12. dxe5 dxe5 13. Na4 Ne4 14. Nd2 Nec5 15. Nxc5 Nxc5 16. a3 e4 17. Bxg7 Qxg7 18. b4 axb4 19. axb4 {0-1 (44) Beradze,I (2416)-Bortnyk,O (2557) Ureki 2015}) 9... e5 {[%emt 0:02:43]} 10. dxe5 {[%emt 0:02:09]} dxe5 {[%emt 0:00:09]} 11. Rad1 {[%emt 0:00:20]} Be6 {[%emt 0:01:57]} 12. b3 {[%emt 0:00:50]} Na6 {[%emt 0:01:55]} 13. Na4 $146 {[%emt 0:10:54]} ({Predecessor:} 13. Bc1 e4 14. Nd4 Bf7 15. Na4 Rad8 16. Ba3 Rfe8 {1-0 (67) Otte,M (2162)-Schmid,M (2126) Bayern 2005}) 13... h6 {[%emt 0:07:03]} 14. Bc1 {[%emt 0:09:44]} Rfd8 {[%emt 0:07:45]} 15. Bb2 {[%emt 0:06:53]} e4 {[%emt 0:19:00]} 16. Nd4 {[%emt 0:02:02]} Bf7 {[%emt 0:00:27]} 17. Qb1 {[%emt 0:10:33]} Qe7 {[%emt 0:06:29]} 18. Nc2 {[%emt 0:04:34]} Rxd1 {[%emt 0:01:58]} 19. Rxd1 Rd8 {[%emt 0:00:44]} 20. Ba3 {[%emt 0:10:40]} Rxd1+ {[%emt 0:01:24]} 21. Qxd1 {[%emt 0:00:07]} Qd7 {[%emt 0:00:58]} 22. Qxd7 {[%emt 0:13:46]} Nxd7 {[%emt 0:00:02]} 23. Bb2 {[%emt 0:01:38]} Nac5 {[%emt 0:07:13]} 24. Nxc5 {[%emt 0:02:44]} Nxc5 {[%emt 0:00:02]} 25. Ba3 {[%emt 0:01:50]} Ne6 {[%emt 0:03:21]} 26. Bc1 {[%emt 0:06:42]} Kh7 {[%emt 0:03:31]} 27. g4 {[%emt 0:04:50]} Nd4 {[%emt 0:03:22]} 28. Nxd4 {[%emt 0:01:24]} Bxd4 {[%emt 0:00:03]} 29. e3 {[%emt 0:01:04]} Bc3 {[%emt 0:02:01]} 30. f3 {[%emt 0:06:12]} exf3 {[%emt 0:03:54]} 31. Bxf3 {[%emt 0:00:08]} Be6 {[%emt 0:00:36]} 32. gxf5 {[%emt 0:01:55]} Bxf5 {[%emt 0:00:15]} 33. e4 {[%emt 0:01:06]} Bh3 {[%emt 0:01:34]} 34. Be3 {[%emt 0:00:47]} a6 {[%emt 0:01:58]} 35. Kf2 {[%emt 0:00:45]} Be5 {[%emt 0:00:51]} 36. Kg1 {[%emt 0:00:44]} g5 {[%emt 0:03:31]} 37. Be2 {[%emt 0:01:52]} Kg6 $17 {[%emt 0:01:37]} 38. b4 {[%emt 0:00:37]} b5 {[%emt 0:05:02]} 0-1

[Event "ESTCC U65 2018"]
[Site "Walbrzych"]
[Date "2018.04.19"]
[Round "6"]
[White "Hurme, Harri"]
[Black "Christiansen, Arne"]
[Result "1/2-1/2"]
[ECO "D36"]
[WhiteElo "2229"]
[BlackElo "2045"]
[Annotator "NA"]
[PlyCount "140"]
[EventDate "2018.??.??"]
[EventCountry "POL"]
[SourceTitle "playchess.com"]
[Source "ChessBase"]
[SourceQuality "1"]
[WhiteTeam "Finland"]
[BlackTeam "Denmark"]
[WhiteTeamCountry "FIN"]
[BlackTeamCountry "DEN"]
[TimeControl "40/5400+30:1800+30"]

1. d4 {[%emt 0:00:00]} d5 {[%emt 0:00:06]} 2. c4 {[%emt 0:00:00]} e6 {[%emt 0:00:06]} 3. Nc3 {[%emt 0:00:00]} Nf6 {[%emt 0:00:07]} 4. cxd5 {[%emt 0:00:04]} exd5 {[%emt 0:00:22]} 5. Bg5 {[%emt 0:00:10]} c6 {[%emt 0:00:30]} 6. Qc2 {[%emt 0:00:10]} Nbd7 {[%emt 0:01:34]} 7. e3 {[%emt 0:00:35]} Be7 {[%emt 0:00:31]} 8. h3 {[%emt 0:01:43]} O-O {[%emt 0:00:39]} 9. Bd3 {[%emt 0:00:30]} Re8 {[%emt 0:02:28]} 10. Nge2 {[%emt 0:00:34] LiveBook: 110 Games} Nf8 {[%emt 0:00:40]} 11. O-O {[%emt 0:00:53] D36: Queen's Gambit Declined: Exchange Variation: Main line (5 Bg5 c6 6 Qc2)} (11. O-O-O a5 12. Kb1 b5 13. Ng3 a4 14. Nce2 Ra6 15. f3 h6 16. Bxf6 Bxf6 17. e4 dxe4 18. fxe4 Be6 19. e5 Be7 {½-½ (36) Dreev,A (2694)-Jussupow,A (2586) Switzerland 2011}) 11... h6 {[%emt 0:02:19]} 12. Bf4 {[%emt 0:00:24]} Bd6 {[%emt 0:01:17]} 13. Rab1 {[%emt 0:01:34]} Bxf4 {[%emt 0:06:22]} 14. Nxf4 {[%emt 0:00:06]} Ne6 {[%emt 0:00:23]} 15. Nxe6 {[%emt 0:03:03]} Bxe6 {[%emt 0:00:21]} 16. b4 {[%emt 0:00:14]} Bd7 $146 {[%emt 0:08:08]} ({Find the theoretical novelty and annotate with similar games:} 16... Rc8 17. Rfc1 a6 18. a4 Re7 19. b5 axb5 20. axb5 {1-0 (33) Pakleza,Z (2497)-Priehoda,V (2360) Czech Republic 2018}) 17. b5 {[%emt 0:02:23]} Qe7 {[%emt 0:03:12]} 18. bxc6 {[%emt 0:01:01]} Bxc6 {[%emt 0:00:12]} 19. Na4 {[%emt 0:01:36]} Ne4 {[%emt 0:06:18]} 20. Bxe4 {[%emt 0:00:46]} Qxe4 {[%emt 0:00:24]} 21. Qxe4 {[%emt 0:00:26]} Rxe4 {[%emt 0:00:17]} 22. Nc5 {[%emt 0:00:36]} Re7 {[%emt 0:00:18]} 23. Rfc1 {[%emt 0:02:11]} Rc8 {[%emt 0:06:20]} 24. Nd3 {[%emt 0:03:50]} Rec7 {[%emt 0:04:17]} 25. Rc3 {[%emt 0:03:44]} Bd7 {[%emt 0:04:03]} 26. Rxc7 {[%emt 0:10:17]} Rxc7 {[%emt 0:00:13]} 27. Rb3 {[%emt 0:00:29]} b6 {[%emt 0:02:19]} 28. g4 {[%emt 0:01:15]} g5 {[%emt 0:04:36]} 29. Kf1 {[%emt 0:02:53]} Kf8 {[%emt 0:00:22]} 30. Ke1 {[%emt 0:00:24]} Ke7 {[%emt 0:02:36]} 31. Kd2 {[%emt 0:00:25]} f6 {[%emt 0:02:23]} 32. f3 {[%emt 0:02:09]} Rc4 {[%emt 0:11:15]} 33. Nb2 {[%emt 0:02:56]} Rc7 {[%emt 0:01:59]} 34. a4 {[%emt 0:02:14]} Kd6 {[%emt 0:00:43]} 35. Ra3 {[%emt 0:01:15]} a5 {[%emt 0:06:02]} 36. Nd1 {[%emt 0:01:35]} Rc4 {[%emt 0:07:56]} 37. Nc3 {[%emt 0:00:41]} Rb4 {[%emt 0:00:35]} 38. Kc2 {[%emt 0:03:45]} Rc4 {[%emt 0:01:38]} 39. Ra1 {[%emt 0:01:39]} Bc6 {[%emt 0:07:06]} 40. Kd3 {[%emt 0:00:00]} Rb4 {[%emt 0:00:58]} 41. e4 {[%emt 0:03:49]} Rb2 {[%emt 0:01:18]} 42. Rh1 {[%emt 0:13:41]} Rf2 {[%emt 0:02:00]} 43. exd5 {[%emt 0:01:24]} Bxd5 {[%emt 0:00:12]} 44. Ne4+ {[%emt 0:00:41]} Bxe4+ {[%emt 0:00:16]} 45. fxe4 {[%emt 0:00:26]} Ra2 {[%emt 0:00:17]} 46. Rb1 {[%emt 0:03:57]} Ra3+ {[%emt 0:01:32]} 47. Ke2 {[%emt 0:00:42]} Kc7 {[%emt 0:00:54]} 48. Rf1 {[%emt 0:01:13]} Rxa4 {[%emt 0:02:40]} 49. Kd3 {[%emt 0:00:27]} b5 {[%emt 0:04:27]} 50. d5 {[%emt 0:01:48]} Ra3+ {[%emt 0:01:45]} 51. Kd4 {[%emt 0:00:24]} Ra4+ {[%emt 0:12:13]} 52. Kc5 {[%emt 0:00:38]} Rxe4 {[%emt 0:02:54]} 53. Rxf6 {[%emt 0:01:09]} b4 {[%emt 0:00:25]} 54. Ra6 {[%emt 0:02:15]} Re3 {[%emt 0:01:54]} 55. Ra7+ {[%emt 0:00:37]} Kc8 {[%emt 0:00:30]} 56. Rxa5 $11 {[%emt 0:00:27]} b3 {[%emt 0:00:11]} 57. Rb5 {[%emt 0:12:54]} Rxh3 {[%emt 0:01:09]} 58. Kc4 {[%emt 0:00:11]} Rg3 {[%emt 0:01:56]} 59. Rxb3 {[%emt 0:00:42]} Rxg4+ {[%emt 0:00:11]} 60. Kc5 {[%emt 0:00:08]} h5 {[%emt 0:01:24]} 61. Rb6 {[%emt 0:03:15]} Rg1 {[%emt 0:00:59]} 62. Rh6 {[%emt 0:00:38]} h4 {[%emt 0:02:25]} 63. Kd6 {[%emt 0:01:45]} Re1 {[%emt 0:02:57]} 64. Rh8+ {[%emt 0:01:01]} Kb7 {[%emt 0:00:08]} 65. Rh5 {[%emt 0:00:17]} Re8 {[%emt 0:02:14]} 66. Rxg5 {[%emt 0:01:26]} Rh8 {[%emt 0:00:08]} 67. Rg7+ {[%emt 0:02:20]} Kb6 {[%emt 0:00:40]} 68. Rg2 {[%emt 0:00:59]} Rh6+ {[%emt 0:00:49]} 69. Ke5 {[%emt 0:00:44]} h3 {[%emt 0:00:31]} 70. Rh2 {[%emt 0:00:25]} Rh5+ {[%emt 0:00:13]} 1/2-1/2

[Event "ESTCC U65 2018"]
[Site "Walbrzych"]
[Date "2018.04.19"]
[Round "6"]
[White "Ackermann, Hans Werner"]
[Black "Carlsten, Peter"]
[Result "1/2-1/2"]
[ECO "A04"]
[WhiteElo "2211"]
[BlackElo "2010"]
[Annotator "NA"]
[PlyCount "40"]
[EventDate "2018.??.??"]
[EventCountry "POL"]
[SourceTitle "playchess.com"]
[Source "ChessBase"]
[SourceQuality "1"]
[WhiteTeam "Germany"]
[BlackTeam "Sweden"]
[WhiteTeamCountry "GER"]
[BlackTeamCountry "SWE"]
[TimeControl "40/5400+30:1800+30"]

1. Nf3 {[%emt 0:00:00]} d6 {[%emt 0:00:36]} 2. d4 {[%emt 0:00:00]} f5 {[%emt 0:00:23]} 3. c4 {[%emt 0:03:37]} Nf6 {[%emt 0:00:07]} 4. Nc3 {[%emt 0:01:04]} g6 {[%emt 0:00:07]} 5. Bf4 {[%emt 0:04:40]} Bg7 {[%emt 0:00:37]} 6. e3 {[%emt 0:01:30]} O-O {[%emt 0:01:35]} 7. h3 {[%emt 0:00:35]} e6 {[%emt 0:06:31]} 8. Be2 {[%emt 0:04:10]} Qe7 {[%emt 0:00:33]} 9. Qb3 {[%emt 0:03:41]} Nbd7 $14 {[%emt 0:04:12]} 10. Nb5 {[%emt 0:03:02]} Ne8 {[%emt 0:05:21]} 11. c5 {[%emt 0:09:25]} dxc5 {[%emt 0:06:13]} 12. Nxc7 {[%emt 0:00:35]} Nxc7 {[%emt 0:00:30]} 13. Bxc7 {[%emt 0:00:09]} cxd4 {[%emt 0:07:15]} 14. exd4 {[%emt 0:00:53]} Nc5 {[%emt 0:00:13]} 15. dxc5 {[%emt 0:00:15]} Qxc7 {[%emt 0:02:16]} 16. O-O {[%emt 0:06:02]} Qxc5 {[%emt 0:01:11]} 17. Bc4 {[%emt 0:00:16]} Kh8 {[%emt 0:04:22]} 18. Bxe6 {[%emt 0:12:23]} Bxe6 {[%emt 0:00:54]} 19. Qxe6 {[%emt 0:00:35]} Rfe8 {[%emt 0:07:24]} 20. Qb3 {[%emt 0:03:45]} Qb6 {[%emt 0:01:12]} 1/2-1/2

[Event "ESTCC U65 2018"]
[Site "Walbrzych"]
[Date "2018.04.19"]
[Round "6"]
[White "Baumbach, Friedrich"]
[Black "Karppinen, Martti"]
[Result "1-0"]
[ECO "D61"]
[WhiteElo "2172"]
[BlackElo "1894"]
[Annotator "NA"]
[PlyCount "79"]
[EventDate "2018.??.??"]
[EventCountry "POL"]
[SourceTitle "playchess.com"]
[Source "ChessBase"]
[SourceQuality "1"]
[WhiteTeam "Germany"]
[BlackTeam "Finland"]
[WhiteTeamCountry "GER"]
[BlackTeamCountry "FIN"]
[TimeControl "40/5400+30:1800+30"]

1. d4 {[%emt 0:00:00]} d5 {[%emt 0:04:29]} 2. c4 {[%emt 0:00:00]} e6 {[%emt 0:02:00]} 3. Nc3 {[%emt 0:00:04]} Nf6 {[%emt 0:01:01]} 4. Bg5 {[%emt 0:00:27]} Be7 {[%emt 0:01:26]} 5. e3 {[%emt 0:00:12]} O-O {[%emt 0:04:39]} 6. Nf3 {[%emt 0:00:16]} Nbd7 {[%emt 0:01:23]} 7. Qc2 {[%emt 0:00:24]} b6 {[%emt 0:03:34]} 8. cxd5 {[%emt 0:03:18]} exd5 {[%emt 0:03:08]} 9. Bb5 {[%emt 0:06:05] D61: Queen's Gambit Declined: Classical: 7 Qc2} (9. Bd3 c5 10. Ne5 h6 11. Nc6 Qe8 12. Nxe7+ Qxe7 13. Nxd5 Qd6 14. Nxf6+ Nxf6 15. Bf4 Qd5 16. dxc5 Qxg2 17. O-O-O Qc6 18. Rhg1 Kh8 19. Be5 Bb7 20. Rxg7 Kxg7 21. Rg1+ Kh8 22. Qc3 {1-0 (22) Girya,O (2505)-Pogonina,N (2466) Sochi 2017}) 9... Bb7 {[%emt 0:05:12]} 10. O-O {[%emt 0:02:15]} h6 {[%emt 0:01:59]} 11. Bh4 {[%emt 0:02:51]} Rc8 {[%emt 0:05:26]} 12. Bd3 {[%emt 0:01:34]} c5 {[%emt 0:03:01]} 13. Bf5 {[%emt 0:11:12]} cxd4 $146 {[%emt 0:07:42]} ({Find the theoretical novelty and annotate with similar games:} 13... g6 14. Bxg6 fxg6 15. Qxg6+ Kh8 16. Nb5 a6 17. Nd6 Bxd6 18. Qxh6+ Kg8 19. Qg6+ Kh8 20. Qh6+ Kg8 {½-½ (20) Splichal,J (2112)-Costa Trillo,V (2228) ICCF email 2014}) 14. exd4 {[%emt 0:00:52]} Rc4 {[%emt 0:02:07]} 15. Rfe1 {[%emt 0:15:35]} Re8 {[%emt 0:12:51]} 16. Qd3 {[%emt 0:11:03]} a6 {[%emt 0:08:28]} 17. Re2 {[%emt 0:05:02]} b5 {[%emt 0:08:42]} 18. Rae1 {[%emt 0:02:14]} g5 {[%emt 0:04:25]} 19. Bg3 {[%emt 0:01:35]} Bb4 {[%emt 0:08:18]} 20. h4 {[%emt 0:10:58]} Rxe2 {[%emt 0:00:26]} 21. Rxe2 {[%emt 0:01:16]} g4 {[%emt 0:03:57]} 22. Ne5 {[%emt 0:02:41]} Nxe5 {[%emt 0:00:51]} 23. dxe5 {[%emt 0:02:53]} Nh5 {[%emt 0:01:29]} 24. e6 {[%emt 0:05:48]} Nxg3 {[%emt 0:02:04]} 25. Qxg3 {[%emt 0:02:06]} (25. exf7+ Kxf7 26. fxg3 (26. Qxg3 Qd6 $16) 26... Qf6 $18) 25... h5 {[%emt 0:01:22]} 26. Qe5 {[%emt 0:05:05]} f6 {[%emt 0:01:56]} 27. e7 {[%emt 0:00:39]} Qe8 {[%emt 0:01:02]} 28. Qxf6 {[%emt 0:00:22]} d4 {[%emt 0:00:36]} 29. Be6+ {[%emt 0:01:09]} Kh7 {[%emt 0:00:28]} 30. Bf7 {[%emt 0:00:38]} Qc6 {[%emt 0:00:36]} 31. Qxc6 {[%emt 0:02:18]} Bxc6 {[%emt 0:00:18]} 32. Bxc4 {[%emt 0:02:49]} bxc4 {[%emt 0:00:33]} 33. e8=Q {[%emt 0:00:09]} Bxe8 {[%emt 0:00:07]} 34. Rxe8 {[%emt 0:00:04]} dxc3 {[%emt 0:00:18]} 35. bxc3 {[%emt 0:00:02]} Bxc3 {[%emt 0:00:13]} 36. Rc8 {[%emt 0:00:12]} Bf6 {[%emt 0:00:35]} 37. Rxc4 {[%emt 0:00:11]} Bd8 {[%emt 0:00:58]} 38. Rc8 $18 {[%emt 0:00:35]} Bxh4 {[%emt 0:00:45]} 39. Ra8 {[%emt 0:00:37]} a5 {[%emt 0:00:53]} 40. Rxa5 {[%emt 0:00:00]} 1-0

[Event "ESTCC U65 2018"]
[Site "Walbrzych"]
[Date "2018.04.19"]
[Round "6"]
[White "Hammar, Bengt"]
[Black "Kierzek, Matthias"]
[Result "1/2-1/2"]
[ECO "B18"]
[WhiteElo "2133"]
[BlackElo "2272"]
[Annotator "NA RC"]
[PlyCount "42"]
[EventDate "2018.??.??"]
[EventCountry "POL"]
[SourceTitle "playchess.com"]
[Source "ChessBase"]
[SourceQuality "1"]
[WhiteTeam "Sweden"]
[BlackTeam "Germany"]
[WhiteTeamCountry "SWE"]
[BlackTeamCountry "GER"]
[TimeControl "40/5400+30:1800+30"]

1. e4 {[%emt 0:00:00]} c6 {[%emt 0:00:05]} 2. d4 {[%emt 0:00:36]} d5 {[%emt 0:00:06]} 3. Nc3 {[%emt 0:00:29]} dxe4 {[%emt 0:00:06]} 4. Nxe4 {[%emt 0:00:07]} Bf5 {[%emt 0:00:05]} 5. Ng3 {[%emt 0:00:13]} Bg6 {[%emt 0:00:05]} 6. N1e2 {[%emt 0:00:18]} e6 {[%emt 0:00:16]} 7. Nf4 {[%emt 0:00:50]} Bd6 {[%emt 0:01:12]} 8. c3 {[%emt 0:03:55]} Nf6 {[%emt 0:05:17]} 9. h4 {[%emt 0:02:37]} Bxf4 {[%emt 0:06:17]} 10. Bxf4 {[%emt 0:00:47]} h6 {[%emt 0:00:02]} 11. h5 {[%emt 0:04:19]} Bh7 {[%emt 0:00:10]} 12. Qb3 {[%emt 0:00:28]} Qe7 {[%emt 0:11:42]} 13. Be2 $11 {[%emt 0:01:39] LiveBook: 25 Games} a5 {[%emt 0:02:41]} 14. c4 {[%emt 0:12:00]} a4 {[%emt 0:09:46]} 15. Qc3 {[%emt 0:02:01]} Nbd7 {[%emt 0:02:31]} 16. O-O {[%emt 0:01:22]} O-O {[%emt 0:01:46]} 17. Rfe1 {[%emt 0:01:52]} Rfe8 {[%emt 0:08:10]} 18. Bf3 {[%emt 0:02:22]} Qd8 {[%emt 0:00:56]} 19. Rad1 {[%emt 0:04:11]} Qb6 {[%emt 0:02:03]} 20. Re2 {[%emt 0:10:45]} Qa5 {[%emt 0:05:34]} 21. Qxa5 {[%emt 0:05:58]} Rxa5 {[%emt 0:00:10]} 1/2-1/2

[Event "ESTCC U65 2018"]
[Site "Walbrzych"]
[Date "2018.04.19"]
[Round "6"]
[White "Giulian, Philip M"]
[Black "Kauko, Pekka"]
[Result "1-0"]
[ECO "A06"]
[WhiteElo "2124"]
[BlackElo "1961"]
[Annotator "ChessBase"]
[PlyCount "95"]
[EventDate "2018.??.??"]
[EventCountry "POL"]
[SourceTitle "playchess.com"]
[Source "ChessBase"]
[SourceQuality "1"]
[WhiteTeam "Scotland"]
[BlackTeam "Finland"]
[WhiteTeamCountry "SCO"]
[BlackTeamCountry "FIN"]
[TimeControl "40/5400+30:1800+30"]

1. Nf3 {[%emt 0:00:00]} d5 {[%emt 0:00:16]} 2. c4 {[%emt 0:00:00]} c6 {[%emt 0:00:19]} 3. g3 {[%emt 0:00:00]} Nf6 {[%emt 0:00:12]} 4. Bg2 {[%emt 0:00:00]} g6 {[%emt 0:00:19]} 5. b3 {[%emt 0:00:44]} Bg7 {[%emt 0:00:11]} 6. Bb2 {[%emt 0:00:11]} O-O {[%emt 0:00:12]} 7. O-O {[%emt 0:00:19]} Re8 {[%emt 0:00:24]} 8. d4 {[%emt 0:13:13]} Nbd7 {[%emt 0:03:43]} 9. Nbd2 {[%emt 0:01:53]} Qb6 {[%emt 0:02:58]} 10. Qc2 {[%emt 0:02:04]} e6 {[%emt 0:09:04]} 11. Rfe1 {[%emt 0:04:12]} a5 {[%emt 0:01:52]} 12. c5 {[%emt 0:18:08]} Qa7 {[%emt 0:02:14]} 13. Rac1 {[%emt 0:00:49]} a4 {[%emt 0:00:57]} 14. h3 {[%emt 0:07:26]} h5 {[%emt 0:02:05]} 15. b4 {[%emt 0:00:44]} Bh6 {[%emt 0:01:42]} 16. e3 {[%emt 0:01:36]} a3 {[%emt 0:01:19]} 17. Ba1 {[%emt 0:01:19]} Qa4 {[%emt 0:02:58]} 18. Qb1 {[%emt 0:01:45]} Rb8 {[%emt 0:03:24]} 19. Bf1 {[%emt 0:02:09]} b6 {[%emt 0:06:26]} 20. cxb6 {[%emt 0:00:12]} Rxb6 {[%emt 0:00:40]} 21. Bc3 {[%emt 0:00:09]} Bf8 {[%emt 0:01:02]} 22. Qc2 {[%emt 0:02:57]} Qa7 {[%emt 0:08:42]} 23. Rb1 {[%emt 0:04:49]} Ba6 {[%emt 0:00:59]} 24. Qa4 {[%emt 0:09:18]} Ra8 {[%emt 0:00:32]} 25. Bxa6 {[%emt 0:00:50]} Rxa6 {[%emt 0:02:50]} 26. Qc2 {[%emt 0:00:37]} Rb6 {[%emt 0:01:27]} 27. Ne5 {[%emt 0:07:27]} Qb7 {[%emt 0:02:56]} 28. Nd3 {[%emt 0:00:24]} Qc7 {[%emt 0:09:13]} 29. Rb3 {[%emt 0:05:06]} Bd6 {[%emt 0:04:40]} 30. f4 {[%emt 0:00:07]} Be7 {[%emt 0:03:26]} 31. Nc5 {[%emt 0:04:13]} Kh7 {[%emt 0:01:03]} 32. Nf3 {[%emt 0:00:31]} Nf8 {[%emt 0:05:35]} 33. Qg2 {[%emt 0:01:40]} Rbb8 {[%emt 0:05:47]} 34. g4 {[%emt 0:00:21]} Qc8 {[%emt 0:01:33]} 35. Rc1 {[%emt 0:00:28]} Ra7 {[%emt 0:01:58]} 36. Ne5 {[%emt 0:00:26]} Kg7 {[%emt 0:03:33]} 37. Be1 {[%emt 0:00:11]} N8h7 {[%emt 0:00:54]} 38. Rcc3 {[%emt 0:04:20]} Nf8 {[%emt 0:03:52]} 39. Qc2 {[%emt 0:05:43]} hxg4 {[%emt 0:01:51]} 40. hxg4 {[%emt 0:00:00]} Rb6 {[%emt 0:01:29]} 41. Rxa3 {[%emt 0:01:47]} Rxa3 {[%emt 0:01:39]} 42. Rxa3 {[%emt 0:00:06]} Qb8 {[%emt 0:02:16]} 43. g5 {[%emt 0:03:06]} Ne4 {[%emt 0:02:06]} 44. Ned7 {[%emt 0:01:12]} Nxd7 {[%emt 0:00:47]} 45. Nxd7 {[%emt 0:00:07]} Qb7 {[%emt 0:00:23]} 46. Nxb6 {[%emt 0:00:04]} Qxb6 {[%emt 0:00:09]} 47. Ra8 {[%emt 0:01:34]} Qb7 {[%emt 0:01:24]} 48. Qa4 {[%emt 0:00:06]} 1-0

[Event "ESTCC U65 2018"]
[Site "Walbrzych"]
[Date "2018.04.19"]
[Round "6"]
[White "Staechelin, Ruedi"]
[Black "Lundgren, Ulf"]
[Result "1/2-1/2"]
[ECO "C88"]
[WhiteElo "2091"]
[BlackElo "1989"]
[Annotator "NA"]
[PlyCount "39"]
[EventDate "2018.??.??"]
[EventCountry "POL"]
[SourceTitle "playchess.com"]
[Source "ChessBase"]
[SourceQuality "1"]
[WhiteTeam "Switzerland"]
[BlackTeam "Sweden"]
[WhiteTeamCountry "SUI"]
[BlackTeamCountry "SWE"]
[TimeControl "40/5400+30:1800+30"]

1. e4 {[%emt 0:00:00]} e5 {[%emt 0:00:22]} 2. Nf3 {[%emt 0:00:00]} Nc6 {[%emt 0:00:05]} 3. Bb5 {[%emt 0:00:06]} a6 {[%emt 0:01:37]} 4. Ba4 {[%emt 0:01:12]} Nf6 {[%emt 0:02:16]} 5. O-O {[%emt 0:01:20]} b5 {[%emt 0:00:24]} 6. Bb3 {[%emt 0:00:04]} Be7 {[%emt 0:02:32]} 7. Re1 {[%emt 0:00:23]} d6 {[%emt 0:00:44]} 8. c3 {[%emt 0:01:38]} Na5 {[%emt 0:00:46]} 9. Bc2 {[%emt 0:00:25]} c5 {[%emt 0:00:05]} 10. d3 {[%emt 0:04:11]} Bg4 {[%emt 0:02:19]} 11. Nbd2 {[%emt 0:01:08]} Nc6 {[%emt 0:00:51]} 12. Nf1 {[%emt 0:01:42]} O-O {[%emt 0:01:07]} 13. h3 {[%emt 0:01:15]} Bd7 {[%emt 0:03:31]} 14. Ne3 $11 {[%emt 0:01:52]} Qc8 {[%emt 0:03:54]} 15. Nd5 {[%emt 0:09:40]} Bd8 {[%emt 0:05:36]} 16. Ne3 {[%emt 0:17:28]} Ne8 {[%emt 0:05:25]} 17. d4 {[%emt 0:11:48]} c4 {[%emt 0:19:14]} 18. dxe5 {[%emt 0:05:51]} dxe5 {[%emt 0:00:54]} 19. Qe2 {[%emt 0:03:23]} Nc7 {[%emt 0:03:29]} 20. Qf1 {[%emt 0:08:16]} 1/2-1/2

[Event "ESTCC U65 2018"]
[Site "Walbrzych"]
[Date "2018.04.19"]
[Round "6"]
[White "White, Alastair F"]
[Black "Alkkiomaki, Jyrki"]
[Result "1-0"]
[ECO "C24"]
[WhiteElo "2069"]
[BlackElo "1967"]
[Annotator "NA"]
[PlyCount "87"]
[EventDate "2018.??.??"]
[EventCountry "POL"]
[SourceTitle "playchess.com"]
[Source "ChessBase"]
[SourceQuality "1"]
[WhiteTeam "Scotland"]
[BlackTeam "Finland"]
[WhiteTeamCountry "SCO"]
[BlackTeamCountry "FIN"]
[TimeControl "40/5400+30:1800+30"]

1. e4 {[%emt 0:00:00]} e5 {[%emt 0:00:08]} 2. Bc4 {[%emt 0:00:01]} Nf6 {[%emt 0:01:55]} 3. d3 {[%emt 0:00:13]} Bc5 {[%emt 0:00:46]} 4. Nc3 {[%emt 0:00:44]} h6 5. f4 {[%emt 0:03:00]} d6 {[%emt 0:04:17]} 6. Na4 {[%emt 0:01:51]} Bxg1 {[%emt 0:02:03]} 7. Rxg1 {[%emt 0:00:08]} c6 {[%emt 0:01:14]} 8. Nc3 {[%emt 0:00:15]} exf4 {[%emt 0:02:33]} 9. Bxf4 {[%emt 0:01:29]} Qb6 {[%emt 0:08:57]} 10. Ne2 {[%emt 0:09:12]} d5 {[%emt 0:02:13]} 11. exd5 {[%emt 0:01:55]} cxd5 {[%emt 0:00:20]} 12. Bb3 {[%emt 0:01:07]} Bg4 {[%emt 0:03:47]} 13. Qd2 {[%emt 0:03:29]} Nbd7 {[%emt 0:01:20]} 14. h3 {[%emt 0:02:03]} Be6 {[%emt 0:00:46]} 15. O-O-O $14 {[%emt 0:04:35]} ({White should try} 15. Be3 $16 Qd6 16. O-O-O) 15... Nc5 {[%emt 0:00:35]} 16. Be5 {[%emt 0:06:43]} a5 {[%emt 0:03:54]} 17. c3 {[%emt 0:06:40]} Nxb3+ {[%emt 0:00:16]} 18. axb3 {[%emt 0:00:07]} Qxb3 {[%emt 0:01:31]} 19. Nd4 {[%emt 0:02:24]} Qa2 {[%emt 0:00:26]} 20. Kc2 {[%emt 0:05:30]} Qa4+ {[%emt 0:00:11]} 21. Kb1 {[%emt 0:00:07]} Qd7 {[%emt 0:09:38]} 22. Qf2 {[%emt 0:04:24]} Rg8 {[%emt 0:04:53]} 23. Rge1 {[%emt 0:02:25]} O-O-O {[%emt 0:00:22]} 24. Nxe6 {[%emt 0:06:40]} fxe6 {[%emt 0:00:25]} 25. Qc5+ {[%emt 0:03:30]} Qc6 {[%emt 0:00:37]} 26. Qxc6+ {[%emt 0:00:16]} bxc6 {[%emt 0:00:18]} 27. Bxf6 {[%emt 0:00:22]} gxf6 {[%emt 0:00:10]} 28. Rxe6 {[%emt 0:00:09]} Kd7 {[%emt 0:01:53]} 29. Rxf6 {[%emt 0:00:09]} Rxg2 {[%emt 0:00:11]} 30. Re1 {[%emt 0:05:17]} Rb8 {[%emt 0:00:33]} 31. Rf7+ {[%emt 0:02:22]} Kd6 {[%emt 0:00:16]} 32. Rf6+ {[%emt 0:00:13]} Kc5 {[%emt 0:00:16]} 33. d4+ {[%emt 0:01:33]} Kc4 {[%emt 0:08:51]} 34. Rxc6+ {[%emt 0:00:07]} Kb3 {[%emt 0:00:08]} 35. Ka1 {[%emt 0:01:23]} a4 {[%emt 0:10:33]} 36. c4 {[%emt 0:05:20]} dxc4 {[%emt 0:06:52]} 37. Re3+ {[%emt 0:00:20]} Kb4 {[%emt 0:00:06]} 38. Rc3 {[%emt 0:00:21]} Rf8 {[%emt 0:02:07]} 39. R3xc4+ {[%emt 0:00:25]} Kb3 {[%emt 0:00:38]} 40. Rc3+ {[%emt 0:00:00]} Kb4 {[%emt 0:00:10]} 41. R3c5 {[%emt 0:08:46]} Rb8 {[%emt 0:04:39]} 42. Ka2 {[%emt 0:05:42]} Rd2 {[%emt 0:03:37]} 43. Rc4+ {[%emt 0:00:25]} Kb5 {[%emt 0:00:22]} 44. R6c5+ {[%emt 0:00:11]} 1-0